lending/lending_fUSD_20251016
["ID","MTS","AMOUNT","RATE_DAILY","PERIOD"]
[391442203,1760605833861,-150.0,0.00015492,2]
[391442204,1760605833871,-500.0,0.00015492,2]
[391442205,1760605833880,-500.0,0.00015492,2]
[391442206,1760605833890,-500.0,0.00015492,2]
[391442207,1760605833900,-150.0,0.00015492,2]
[391442208,1760605833909,-150.0,0.00015492,2]
[391442209,1760605833918,-150.0,0.00015492,2]
[391442210,1760605833928,-150.0,0.00015492,2]
[391442211,1760605833937,-500.0,0.00015492,2]
[391442212,1760605833947,-500.0,0.00015492,2]
[391442213,1760605833956,-150.0,0.00015492,2]
[391442214,1760605833965,-150.0,0.00015492,2]
[391442215,1760605833975,-3035.59324525,0.00015502,2]
[391442216,1760605833986,-166.66,0.00015526,2]
[391442217,1760605833995,-229.53007047,0.00015543,2]
[391442218,1760605834005,-500.0,0.00015543,2]
[391442219,1760605834015,-577.0,0.00015543,2]
[391442220,1760605834026,-500.0,0.00015543,2]
[391442221,1760605834035,-500.0,0.00015543,2]
[391442222,1760605834045,-500.0,0.00015543,2]
[391442223,1760605834055,-500.0,0.00015547,2]
[391442224,1760605834065,-500.0,0.00015547,2]
[391442225,1760605834075,-150.0,0.00015547,2]
[391442226,1760605834085,-500.0,0.00015547,2]
[391442227,1760605834095,-500.0,0.00015547,2]
[391442228,1760605834104,-500.0,0.00015547,2]
[391442229,1760605834113,-150.0,0.00015547,2]
[391442230,1760605834125,-200.8066014,0.00015547,2]
[391442231,1760605834134,-150.0,0.00015547,2]
[391442232,1760605834144,-150.0,0.00015547,2]
[391442233,1760605834154,-500.0,0.00015547,2]
[391442234,1760605834164,-500.0,0.00015547,2]
[391442235,1760605834174,-156.21851696,0.00015547,2]
[391442236,1760605834184,-150.0,0.00015547,2]
[391442237,1760605834197,-2062.23436122,0.00015564,2]
[391442238,1760605834258,-947.85302223,0.00015564,2]
[391442239,1760605834272,-560.72803892,0.00015564,2]
[391442240,1760605834285,-370.23151519,0.00015564,2]
[391442241,1760605834295,-1327.04274002,0.00015567,2]
[391442247,1760605838236,-151.0,0.00015379,2]
[391442248,1760605838246,-210.12685834,0.00015567,2]
[391442249,1760605838343,-375.67514166,0.00015567,2]
[391442250,1760605838353,-4030.0,0.00015567,2]
[391442251,1760605838362,-6436.0,0.00015567,2]
[391442252,1760605838372,-6490.535,0.00015567,2]
[391442253,1760605838382,-300.0,0.00015569,2]
[391442254,1760605838392,-139.74024919,0.00015595,2]
[391442256,1760605838403,-2895.85299603,0.00015595,2]
[391442258,1760605838413,-500.0,0.00015598,2]
[391442260,1760605838423,-577.0,0.00015598,2]
[391442262,1760605838432,-500.0,0.00015598,2]
[391442264,1760605838442,-500.0,0.00015598,2]
[391442266,1760605838451,-500.0,0.00015598,2]
[391442268,1760605838461,-500.0,0.00015602,2]
[391442270,1760605838471,-301.79931622,0.00015602,2]
[391442272,1760605838482,-150.0,0.00015602,2]
[391442274,1760605838491,-500.0,0.00015602,2]
[391442276,1760605838500,-500.0,0.00015602,2]
[391442278,1760605838510,-500.0,0.00015602,2]
[391442280,1760605838519,-150.0,0.00015602,2]
[391442282,1760605838529,-150.0,0.00015602,2]
[391442284,1760605838538,-150.59493845,0.00015602,2]
[391442286,1760605838548,-331.75197015,0.00015602,2]
[391442288,1760605838558,-301.89863775,0.00015602,2]
[391442290,1760605838567,-151.08418185,0.00015602,2]
[391442292,1760605838577,-274.12,0.0001565,2]
[391442294,1760605838587,-500.0,0.00015653,2]
[391442296,1760605838596,-577.0,0.00015653,2]
[391442298,1760605838606,-500.0,0.00015653,2]
[391442300,1760605838615,-500.0,0.00015653,2]
[391442302,1760605838625,-500.0,0.00015653,2]
[391442304,1760605838634,-500.0,0.00015656,2]
[391442306,1760605838643,-150.0,0.00015656,2]
[391442308,1760605838652,-500.0,0.00015656,2]
[391442310,1760605838661,-500.0,0.00015656,2]
[391442348,1760605838670,-500.0,0.00015656,2]
[391442350,1760605839029,-201.42660385,0.00015656,2]
[391442352,1760605839039,-150.0,0.00015656,2]
[391442354,1760605839049,-179.40090088,0.00015662,2]
[391442356,1760605839061,-1882.92198362,0.00015688,2]
[391442358,1760605839074,-1152.6712616,0.00015688,2]
[391442360,1760605839084,-1006.0,0.000157,2]
[391442362,1760605839094,-500.0,0.00015708,2]
[391442364,1760605839104,-577.0,0.00015708,2]
[391442366,1760605839117,-500.0,0.00015708,2]
[391442368,1760605839127,-500.0,0.00015708,2]
[391442370,1760605839137,-500.0,0.00015708,2]
[391442372,1760605839148,-425.57880066,0.00015711,2]
[391442483,1760605840387,-74.42119934,0.00015711,2]
[391442485,1760605840396,-150.0,0.00015711,2]
[391442487,1760605840406,-231.11880066,0.00015711,2]
[391442494,1760605840463,-408.90103867,0.00015711,2]
[391442496,1760605840472,-89.29320971,0.00015711,2]
[391442498,1760605840483,-153.1286284,0.00015711,2]
[391442500,1760605840492,-158.64480734,0.00015711,2]
[391442502,1760605840502,-150.0,0.00015711,2]
[391442504,1760605840511,-459.18520318,0.00015763,2]
[391442506,1760605840520,-577.0,0.00015763,2]
[391442508,1760605840530,-500.0,0.00015763,2]
[391442510,1760605840539,-500.0,0.00015763,2]
[391442512,1760605840549,-150.0,0.00015766,2]
[391442514,1760605840558,-209.13632926,0.00015766,2]
[391442516,1760605840568,-154.84065625,0.00015766,2]
[391442518,1760605840577,-3035.59324522,0.00015781,2]
[391442520,1760605840586,-315.87634847,0.00015815,2]
[391442522,1760605840595,-577.0,0.00015817,2]
[391442524,1760605840604,-260.13723364,0.00015817,2]
[391442526,1760605840614,-636.00264476,0.00015817,2]
[391442528,1760605840623,-1460.55032978,0.0001582,2]
[391442530,1760605840632,-166.66,0.00015828,2]
[391442532,1760605840641,-386.2445737,0.00015872,2]
[391442536,1760605840672,-190.7554263,0.00015872,2]
[391442539,1760605840682,-3035.59324522,0.00015874,2]
[391442541,1760605840691,-152.693909,0.0001589,2]
[391442543,1760605840700,-151.0,0.0001589,2]
[391442545,1760605840710,-151.0,0.0001589,2]
[391442547,1760605840719,-151.0,0.0001589,2]
[391442549,1760605840728,-240.31850759,0.0001589,2]
[391442577,1760605840978,-111.78074041,0.0001589,2]
[391442579,1760605840988,-151.0,0.0001589,2]
[391442581,1760605840997,-352.099248,0.0001589,2]
[391442583,1760605841007,-352.099248,0.0001589,2]
[391442585,1760605841017,-352.099248,0.0001589,2]
[391442587,1760605841026,-151.0,0.0001589,2]
[391442589,1760605841035,-151.0,0.00015903,2]
[391442591,1760605841044,-577.0,0.00015927,2]
[391442593,1760605841053,-300.922611,0.0001593,2]
[391442595,1760605841063,-151.00000031,0.0001593,2]
[391442597,1760605841072,-152.962442,0.0001593,2]
[391442599,1760605841082,-518.51562484,0.00015965,2]
[391442833,1760605843389,-142.59437516,0.00015965,2]
[391442835,1760605843399,-3035.59324522,0.00015966,2]
[391442837,1760605843409,-577.0,0.00015982,2]
[391442839,1760605843419,-151.0,0.00016018,2]
[391442841,1760605843428,-151.0,0.00016018,2]
[391442843,1760605843438,-151.0,0.00016018,2]
[391442845,1760605843448,-246.504812,0.00016018,2]
[391442847,1760605843457,-151.0,0.00016018,2]
[391442849,1760605843466,-151.849203,0.00016018,2]
[391442851,1760605843476,-151.0,0.00016018,2]
[391442853,1760605843485,-151.0,0.00016018,2]
[391442855,1760605843495,-151.0,0.00016018,2]
[391442857,1760605843504,-151.0,0.00016018,2]
[391442859,1760605843514,-211.979363,0.00016018,2]
[391442861,1760605843523,-154.952227,0.00016018,2]
[391442863,1760605843533,-151.0,0.00016018,2]
[391442865,1760605843543,-151.0,0.00016018,2]
[391442867,1760605843553,-1208.222,0.00016022,2]
[391442869,1760605843562,-1091.0,0.00016024,2]
[391442871,1760605843571,-577.0,0.00016037,2]
[391442873,1760605843580,-3035.59324522,0.00016059,2]
[391442875,1760605843589,-577.0,0.00016091,2]
[391442877,1760605843599,-1001.42668218,0.00016108,2]
[391442879,1760605843609,-577.0,0.00016146,2]
[391442881,1760605843619,-3035.59324522,0.00016152,2]
[391442883,1760605843629,-151.0,0.00016178,2]
[391442885,1760605843639,-151.0,0.00016178,2]
[391442887,1760605843648,-153.258972,0.00016178,2]
[391442889,1760605843657,-151.0,0.00016178,2]
[391442891,1760605843667,-152.083764,0.00016178,2]
[391442893,1760605843677,-151.933678,0.00016178,2]
[391442895,1760605843687,-151.0,0.00016178,2]
[391442897,1760605843696,-151.0,0.00016178,2]
[391442899,1760605843706,-577.0,0.00016201,2]
[391442901,1760605843715,-300.0,0.00016231,2]
[391442903,1760605843724,-3035.59324522,0.00016245,2]
[391442905,1760605843733,-500.0,0.00016247,2]
[391442907,1760605843743,-151.549859,0.00016247,2]
[391442909,1760605843753,-151.0,0.00016247,2]
[391442911,1760605843762,-151.0,0.00016247,2]
[391442913,1760605843772,-151.0,0.00016247,2]
[391442916,1760605843782,-151.0,0.00016247,2]
[391442918,1760605843792,-151.0,0.00016247,2]
[391442919,1760605843800,-151.0,0.00016247,2]
[391442922,1760605843810,-151.80873,0.00016247,2]
[391442924,1760605843820,-577.0,0.00016256,2]
[391442925,1760605843829,-31655.85074667,0.0001628,2]
[391442927,1760605843838,-301.999999,0.0001628,2]
[391442930,1760605843848,-151.0,0.0001628,2]
[391442932,1760605843858,-151.0,0.0001628,2]
[391442933,1760605843867,-151.0,0.0001628,2]
[391442935,1760605843876,-151.0,0.0001628,2]
[391442937,1760605843886,-200.0,0.00016305,2]
[391442940,1760605843895,-200.0,0.00016306,2]
[391442941,1760605843905,-577.0,0.00016311,2]
[391442943,1760605843914,-179.40090087,0.00016338,2]
[391442946,1760605843924,-3035.59324522,0.00016338,2]
[391442948,1760605843933,-151.0,0.00016338,2]
[391442950,1760605843942,-151.0,0.00016338,2]
[391442952,1760605843952,-151.0,0.00016338,2]
[391442954,1760605843961,-314.654769,0.00016338,2]
[391442956,1760605843970,-314.654769,0.00016338,2]
[391442958,1760605843979,-314.654769,0.00016338,2]
[391442960,1760605843989,-314.654769,0.00016338,2]
[391442962,1760605843998,-151.0,0.00016338,2]
[391442964,1760605844008,-151.0,0.00016338,2]
[391442966,1760605844017,-151.0,0.00016338,2]
[391442967,1760605844027,-151.0,0.00016338,2]
[391442969,1760605844036,-151.0,0.00016338,2]
[391442971,1760605844046,-223.52411952,0.00016338,2]
[391442973,1760605844055,-151.0,0.00016338,2]
[391442975,1760605844065,-427.6143827,0.00016338,2]
[391442977,1760605844074,-5000.0,0.00016338,2]
[391442980,1760605844083,-577.0,0.00016365,2]
[391442981,1760605844092,-577.0,0.0001642,2]
[391442983,1760605844102,-1815.47738011,0.00016437,2]
[391442985,1760605844112,-156.021,0.00016437,2]
[391442988,1760605844122,-150.0,0.00016437,2]
[391442989,1760605844132,-1281.0,0.00016438,2]
[391442992,1760605844141,-500.0,0.00016438,2]
[391442993,1760605844150,-488.2620604,0.00016438,2]
[391442995,1760605844160,-1095.74,0.00016438,2]
[391442997,1760605844168,-1095.74,0.00016438,2]
[391442999,1760605844177,-1050.08,0.00016438,2]
[391443001,1760605844187,-1095.74,0.00016438,2]
[391443003,1760605844202,-1050.08,0.00016438,2]
[391443006,1760605844213,-1095.74,0.00016438,2]
[391443008,1760605844222,-1050.08,0.00016438,2]
[391443010,1760605844232,-1095.74,0.00016438,2]
[391443012,1760605844241,-1050.08,0.00016438,2]
[391443014,1760605844251,-1095.74,0.00016438,2]
[391443016,1760605844260,-1050.08,0.00016438,2]
[391443017,1760605844271,-1095.74,0.00016438,2]
[391443020,1760605844281,-1050.08,0.00016438,2]
[391443022,1760605844291,-1095.74,0.00016438,2]
[391443024,1760605844300,-1050.08,0.00016438,2]
[391443026,1760605844310,-1095.74,0.00016438,2]
[391443027,1760605844321,-1050.08,0.00016438,2]
[391443030,1760605844333,-1095.75321434,0.00016438,2]
[391443032,1760605844342,-1050.08,0.00016438,2]
[391443034,1760605844351,-1050.08,0.00016438,2]
[391443036,1760605844364,-1050.08,0.00016438,2]
[391443038,1760605844377,-1050.08,0.00016438,2]
[391443040,1760605844387,-1050.08,0.00016438,2]
[391443042,1760605844397,-566.74757002,0.00016438,2]
[391443049,1760605844458,-483.33242998,0.00016438,2]
[391443051,1760605844468,-369.79030887,0.00016438,2]
[391443053,1760605844478,-809.4,0.00016438,2]
[391443055,1760605844488,-809.4,0.00016438,2]
[391443057,1760605844498,-809.4,0.00016438,2]
[391443059,1760605844507,-809.4,0.00016438,2]
[391443061,1760605844517,-809.4,0.00016438,2]
[391443063,1760605844527,-809.4,0.00016438,2]
[391443065,1760605844536,-809.4,0.00016438,2]
[391443067,1760605844546,-809.4,0.00016438,2]
[391443069,1760605844556,-809.4,0.00016438,2]
[391443071,1760605844566,-809.4,0.00016438,2]
[391443073,1760605844576,-809.4,0.00016438,2]
[391443075,1760605844586,-809.4,0.00016438,2]
[391443077,1760605844597,-809.4,0.00016438,2]
[391443079,1760605844607,-809.4,0.00016438,2]
[391443081,1760605844616,-809.4,0.00016438,2]
[391443083,1760605844626,-809.4,0.00016438,2]
[391443085,1760605844635,-809.4,0.00016438,2]
[391443087,1760605844645,-809.4,0.00016438,2]
[391443089,1760605844654,-809.4,0.00016438,2]
[391443091,1760605844664,-809.4,0.00016438,2]
[391443093,1760605844673,-809.4,0.00016438,2]
[391443095,1760605844683,-809.4,0.00016438,2]
[391443097,1760605844692,-809.4,0.00016438,2]
[391443099,1760605844702,-809.40950691,0.00016438,2]
[391443101,1760605844712,-2450.96,0.00016438,2]
[391443103,1760605844721,-2450.96,0.00016438,2]
[391443106,1760605844731,-2450.96,0.00016438,2]
[391443108,1760605844740,-2450.96,0.00016438,2]
[391443109,1760605844749,-2450.96,0.00016438,2]
[391443111,1760605844759,-2450.96,0.00016438,2]
[391443144,1760605845060,-2450.96,0.00016438,2]
[391443146,1760605845072,-2450.96,0.00016438,2]
[391443148,1760605845082,-2450.96,0.00016438,2]
[391443150,1760605845091,-2450.96,0.00016438,2]
[391443152,1760605845101,-2450.96,0.00016438,2]
[391443154,1760605845111,-2450.96,0.00016438,2]
[391443156,1760605845121,-2450.96,0.00016438,2]
[391443158,1760605845131,-2450.96,0.00016438,2]
[391443160,1760605845141,-2450.96,0.00016438,2]
[391443162,1760605845151,-2450.96,0.00016438,2]
[391443164,1760605845161,-2450.96,0.00016438,2]
[391443166,1760605845170,-2450.96,0.00016438,2]
[391443168,1760605845180,-2261.63685697,0.00016438,2]
[391443178,1760605845267,-189.32314303,0.00016438,2]
[391443180,1760605845277,-2450.96,0.00016438,2]
[391443182,1760605845286,-2450.96,0.00016438,2]
[391443184,1760605845295,-2450.96,0.00016438,2]
[391443186,1760605845305,-2450.96,0.00016438,2]
[391443188,1760605845315,-2450.9726517,0.00016438,2]
[391443190,1760605845325,-500.0,0.00016438,2]
[391443192,1760605845334,-500.0,0.00016438,2]
[391443194,1760605845343,-500.0,0.00016438,2]
[391443196,1760605845353,-500.0,0.00016438,2]
[391443198,1760605845362,-500.0,0.00016438,2]
[391443200,1760605845371,-500.0,0.00016438,2]
[391443202,1760605845381,-500.0,0.00016438,2]
[391443203,1760605845389,-500.0,0.00016438,2]
[391443204,1760605845398,-500.0,0.00016438,2]
[391443205,1760605845407,-500.0,0.00016438,2]
[391443206,1760605845416,-500.0,0.00016438,2]
[391443207,1760605845425,-500.0,0.00016438,2]
[391443208,1760605845434,-500.0,0.00016438,2]
[391443209,1760605845443,-335.60592823,0.00016438,2]
[391443210,1760605845451,-500.0,0.00016438,2]
[391443211,1760605845460,-500.0,0.00016438,2]
[391443212,1760605845469,-458.89172281,0.00016438,2]
[391443214,1760605845478,-153.52184,0.00016438,2]
[391443216,1760605845487,-2074.2,0.00016438,2]
[391443218,1760605845496,-2074.2,0.00016438,2]
[391443220,1760605845505,-145.78436243,0.00016438,2]
[391443229,1760605845585,-1928.41563757,0.00016438,2]
[391443231,1760605845595,-2074.2,0.00016438,2]
[391443233,1760605845604,-2074.2,0.00016438,2]
[391443235,1760605845616,-2074.2,0.00016438,2]
[391443237,1760605845625,-2074.2,0.00016438,2]
[391443239,1760605845634,-1009.78242243,0.00016438,2]
[391443244,1760605845664,-734.75038,0.00016438,2]
[391443451,1760605847634,-329.66719757,0.00016438,2]
[391443453,1760605847643,-2074.2,0.00016438,2]
[391443455,1760605847652,-2074.2,0.00016438,2]
[391443457,1760605847661,-2074.2,0.00016438,2]
[391443459,1760605847671,-2074.2,0.00016438,2]
[391443461,1760605847680,-2074.2,0.00016438,2]
[391443463,1760605847689,-2074.2,0.00016438,2]
[391443465,1760605847699,-2074.2,0.00016438,2]
[391443467,1760605847708,-2074.2,0.00016438,2]
[391443468,1760605847717,-2074.2,0.00016438,2]
[391443469,1760605847726,-2074.2,0.00016438,2]
[391443470,1760605847735,-1380.33280243,0.00016438,2]
[391443471,1760605847765,-693.86719757,0.00016438,2]
[391443472,1760605847775,-2074.2,0.00016438,2]
[391443473,1760605847784,-41.94280243,0.00016438,2]
[391443475,1760605847800,-2032.25719757,0.00016438,2]
[391443477,1760605847810,-2074.2,0.00016438,2]
[391443479,1760605847823,-1081.71497729,0.00016438,2]
[391443483,1760605847849,-270.81329954,0.00016438,2]
[391443485,1760605847860,-332.81762325,0.00016438,2]
[391443488,1760605847880,-388.85409992,0.00016438,2]
[391443490,1760605847889,-2074.28121513,0.00016438,2]
[391443492,1760605847899,-500.0,0.00016438,2]
[391443494,1760605847909,-500.0,0.00016438,2]
[391443496,1760605847918,-500.0,0.00016438,2]
[391443498,1760605847928,-500.0,0.00016438,2]
[391443500,1760605847937,-500.0,0.00016438,2]
[391443502,1760605847947,-500.0,0.00016438,2]
[391443504,1760605847956,-500.0,0.00016438,2]
[391443506,1760605847965,-500.0,0.00016438,2]
[391443508,1760605847975,-144.55422885,0.00016438,2]
[391444744,1760606593294,602.01093506,0.00026849,120]
[391444745,1760606715297,152.57,7.629e-05,2]
[391444746,1760606715487,152.57,8.719e-05,2]
[391444747,1760606715726,152.57,9.808e-05,2]
[391444748,1760606715930,152.57,0.00010898,2]
[391444749,1760606716153,152.57,0.00011988,2]
[391444771,1760606947062,509.64,0.00027397,120]
[391444779,1760607031435,-152.57,0.00013078,2]
[391444780,1760607031446,-445.8,0.00013699,2]
[391444781,1760607031456,-663.62,0.00014153,2]
[391444782,1760607031465,-152.57,0.00014168,2]
[391444783,1760607031474,-300.0,0.00014386,2]
[391444784,1760607031484,-318.60385465,0.00014899,2]
[391444808,1760607037399,-881.39614535,0.00014899,2]
[391444809,1760607037409,-305.8623,0.000149,2]
[391444810,1760607037421,-963.4388,0.000149,2]
[391444811,1760607037431,-1000.0,0.000149,2]
[391444812,1760607037440,-200.0,0.00014909,2]
[391444813,1760607037450,-300.0,0.00014972,2]
[391444814,1760607037459,-300.0,0.00014972,2]
[391444815,1760607037469,-500.0,0.00014973,2]
[391444816,1760607037478,-500.0,0.00014973,2]
[391444817,1760607037487,-500.0,0.00014973,2]
[391444818,1760607037497,-500.0,0.00014973,2]
[391444819,1760607037507,-500.0,0.00014973,2]
[391444820,1760607037516,-500.0,0.00014973,2]
[391444821,1760607037526,-500.0,0.00014973,2]
[391444822,1760607037536,-175.6429173,0.00014973,2]
[391444823,1760607037546,-547.99297014,0.00014973,2]
[391444824,1760607037555,-735.35679281,0.00014973,2]
[391444825,1760607037564,-151.0,0.00014997,2]
[391444826,1760607037574,-150.0,0.00014998,2]
[391444827,1760607037583,-314.26807239,0.00014999,2]
[391444828,1760607037592,-503.53652257,0.00014999,2]
[391444829,1760607037607,-500.0,0.00014999,2]
[391444830,1760607037618,-500.0,0.00014999,2]
[391444831,1760607037627,-299.97518894,0.00014999,2]
[391444832,1760607037637,-447.62045917,0.00014999,2]
[391444833,1760607037646,-500.0,0.00014999,2]
[391444834,1760607037656,-500.0,0.00014999,2]
[391444835,1760607037665,-519.68362189,0.00014999,2]
[391444837,1760607037674,-500.0,0.00014999,2]
[391444838,1760607037683,-500.0,0.00014999,2]
[391444840,1760607037692,-500.0,0.00014999,2]
[391444841,1760607037702,-500.0,0.00014999,2]
[391444842,1760607037711,-500.0,0.00014999,2]
[391444843,1760607037722,-500.0,0.00014999,2]
[391444845,1760607037731,-500.0,0.00014999,2]
[391444847,1760607037745,-500.0,0.00014999,2]
[391444848,1760607037754,-500.0,0.00014999,2]
[391444850,1760607037764,-500.0,0.00014999,2]
[391444853,1760607037775,-500.0,0.00014999,2]
[391444854,1760607037787,-500.0,0.00014999,2]
[391444857,1760607037797,-500.0,0.00014999,2]
[391444859,1760607037807,-500.0,0.00014999,2]
[391444861,1760607037816,-500.0,0.00014999,2]
[391444863,1760607037825,-500.0,0.00014999,2]
[391444865,1760607037835,-500.0,0.00014999,2]
[391444867,1760607037844,-500.0,0.00014999,2]
[391444869,1760607037861,-500.0,0.00014999,2]
[391444871,1760607037870,-500.0,0.00014999,2]
[391444873,1760607037879,-500.0,0.00014999,2]
[391444875,1760607037889,-500.0,0.00014999,2]
[391444877,1760607037898,-500.0,0.00014999,2]
[391444879,1760607037907,-500.0,0.00014999,2]
[391444881,1760607037916,-500.0,0.00014999,2]
[391444883,1760607037927,-228.10628161,0.00014999,2]
[391444885,1760607037936,-500.0,0.00014999,2]
[391444887,1760607037945,-500.0,0.00014999,2]
[391444889,1760607037954,-500.0,0.00014999,2]
[391444891,1760607037963,-300.0,0.00014999,2]
[391444893,1760607037973,-297975.48199352,0.00015,2]
[391444906,1760607038086,-35681.4463901,0.00015,2]
[391444908,1760607038103,-7135.52825771,0.00015,2]
[391444911,1760607038117,-36008.590824,0.00015,2]
[391445064,1760607039591,-11029.92184342,0.00015,2]
[391445174,1760607040743,-45058.0900164,0.00015,2]
[391445181,1760607040802,-10044.70954478,0.00015,2]
[391445187,1760607040857,-74125.18175763,0.00015,2]
[391445191,1760607040882,-306.069,0.00015,2]
[391445361,1760607042554,-277.1515,0.00015,2]
[391445386,1760607042770,-225354.09778562,0.00015,2]
[391445388,1760607042781,-1152.77290377,0.00015102,2]
[391445390,1760607042791,-348.24276144,0.00015202,2]
[391445392,1760607042800,-277.35679052,0.00015202,2]
[391445394,1760607042811,-7511.06820762,0.00015202,2]
[391445396,1760607042821,-1152.77290373,0.00015239,2]
[391445398,1760607042832,-152.57,0.00015257,2]
[391445400,1760607042848,-3636.42,0.00015353,2]
[391445402,1760607042859,-1152.77290373,0.00015377,2]
[391445403,1760607042868,-1600.0,0.00015386,2]
[391445406,1760607042877,-1000.0,0.00015489,2]
[391445408,1760607042887,-1152.77290373,0.00015514,2]
[391445410,1760607042896,-500.0,0.00015521,2]
[391445411,1760607042905,-500.0,0.00015521,2]
[391445414,1760607042915,-1002.44033433,0.00015538,2]
[391445416,1760607042925,-250.0,0.00015546,2]
[391445418,1760607042934,-1000.0,0.00015588,2]
[391445419,1760607042945,-1000.0,0.00015588,2]
[391445422,1760607042956,-302.293,0.00015588,2]
[391445423,1760607042966,-1152.77290373,0.00015651,2]
[391445425,1760607042976,-1152.77290373,0.00015789,2]
[391445428,1760607042992,-6436.0,0.00015905,2]
[391445430,1760607043001,-3998.0,0.00015905,2]
[391445432,1760607043011,-556.0,0.00015905,2]
[391445434,1760607043020,-1152.77290373,0.00015926,2]
[391445436,1760607043029,-1470.71358563,0.00015968,2]
[391445438,1760607043038,-966.578,0.00016018,2]
[391445440,1760607043047,-1152.77290373,0.00016063,2]
[391445442,1760607043056,-946.98608731,0.00016109,2]
[391445444,1760607043066,-1000.0,0.00016188,2]
[391445446,1760607043075,-1152.77290373,0.00016201,2]
[391445448,1760607043084,-200.0,0.00016307,2]
[391445450,1760607043094,-4584.05164568,0.00016328,2]
[391445452,1760607043105,-151.0,0.00016328,2]
[391445454,1760607043114,-151.0,0.00016328,2]
[391445456,1760607043124,-151.0,0.00016328,2]
[391445458,1760607043133,-151.0,0.00016328,2]
[391445460,1760607043143,-151.0,0.00016328,2]
[391445462,1760607043152,-521.60690922,0.00016328,2]
[391445464,1760607043163,-151.0,0.00016328,2]
[391445466,1760607043172,-250.0,0.00016328,2]
[391445468,1760607043181,-250.0,0.00016328,2]
[391445470,1760607043190,-151.0,0.00016328,2]
[391445472,1760607043200,-250.0,0.00016328,2]
[391445474,1760607043209,-151.0,0.00016328,2]
[391445476,1760607043218,-250.0,0.00016328,2]
[391445478,1760607043227,-250.0,0.00016328,2]
[391445480,1760607043236,-151.0,0.00016328,2]
[391445482,1760607043246,-250.0,0.00016328,2]
[391445484,1760607043255,-250.0,0.00016328,2]
[391445486,1760607043264,-151.0,0.00016328,2]
[391445488,1760607043273,-250.0,0.00016328,2]
[391445490,1760607043282,-151.0,0.00016328,2]
[391445492,1760607043291,-250.0,0.00016328,2]
[391445494,1760607043301,-151.0,0.00016328,2]
[391445496,1760607043310,-250.0,0.00016328,2]
[391445498,1760607043320,-151.0,0.00016328,2]
[391445500,1760607043330,-250.0,0.00016328,2]
[391445502,1760607043339,-151.0,0.00016328,2]
[391445504,1760607043348,-250.0,0.00016328,2]
[391445506,1760607043359,-151.0,0.00016328,2]
[391445508,1760607043368,-250.0,0.00016328,2]
[391445510,1760607043378,-151.0,0.00016328,2]
[391445512,1760607043387,-250.0,0.00016328,2]
[391445514,1760607043396,-151.0,0.00016328,2]
[391445516,1760607043405,-250.0,0.00016328,2]
[391445518,1760607043414,-151.0,0.00016328,2]
[391445520,1760607043423,-322.6107,0.00016328,2]
[391445522,1760607043432,-250.0,0.00016328,2]
[391445524,1760607043441,-151.0,0.00016328,2]
[391445526,1760607043451,-250.0,0.00016328,2]
[391445528,1760607043460,-151.0,0.00016328,2]
[391445530,1760607043469,-151.0,0.00016328,2]
[391445532,1760607043478,-151.0,0.00016328,2]